bitfinex/quotes_BTCUSD_20250901
["timestamp","ask_amount","ask_price","bid_price","bid_amount"]
[1756759771924,0.34,108840.0,108830.0,0.53223056]
[1756759772137,0.18375354,108860.0,108840.0,0.18374591]
[1756759772352,0.34,108850.0,108840.0,0.2756619]
[1756759772563,0.52372221,108860.0,108850.0,0.00203]
[1756759772769,0.54066175,108860.0,108850.0,0.09394599]
[1756759772977,1.07665795,108860.0,108850.0,0.00509]
[1756759773194,1.07665795,108860.0,108850.0,0.18882909]
[1756759773422,0.89293574,108860.0,108850.0,0.28074508]
[1756759773633,1.07665795,108860.0,108850.0,0.28074508]
[1756759774062,1.07665795,108860.0,108850.0,0.09191599]
[1756759774272,1.07665795,108860.0,108850.0,0.36387599]
[1756759774714,1.07665795,108860.0,108850.0,0.36896599]
[1756759774934,0.52372221,108860.0,108850.0,0.36896599]
[1756759775158,0.18376031,108870.0,108860.0,0.18271927]
[1756759775159,0.52370533,108870.0,108860.0,0.18271927]
[1756759775378,1.07664107,108870.0,108850.0,0.55680203]
[1756759775807,0.52370533,108870.0,108860.0,0.18888221]
[1756759776040,1.07664107,108870.0,108860.0,0.18888221]
[1756759776278,0.52370533,108870.0,108850.0,0.55991203]
[1756759776523,0.52370533,108870.0,108860.0,0.18472221]
[1756759776961,0.52370533,108870.0,108860.0,0.18988221]
[1756759777708,1.07664107,108870.0,108860.0,0.18783221]
[1756759777943,1.07664107,108870.0,108860.0,0.001]
[1756759778165,0.18372221,108860.0,108850.0,0.54761508]
[1756759778387,0.73665795,108860.0,108850.0,0.55472508]
[1756759778622,0.73665795,108860.0,108850.0,0.001]
[1756759778838,0.18562221,108860.0,108850.0,0.26852]
[1756759779046,0.7414286,108860.0,108850.0,0.26852]
[1756759779230,0.73665795,108860.0,108850.0,0.26852]
[1756759779661,0.73765795,108860.0,108850.0,0.27352]
[1756759779889,0.73665795,108860.0,108850.0,0.26852]
[1756759780109,0.73665795,108860.0,108850.0,0.45741909]
[1756759780326,0.55293574,108860.0,108850.0,0.55133508]
[1756759780535,0.52370533,108870.0,108860.0,0.18372221]
[1756759780743,1.07664107,108870.0,108860.0,0.18577221]
[1756759780961,1.07664107,108870.0,108860.0,0.18888221]
[1756759781620,0.18372221,108860.0,108850.0,0.54417508]
[1756759781838,0.55293574,108870.0,108860.0,0.18888221]
[1756759782049,0.18375354,108880.0,108870.0,0.18370533]
[1756759782050,1.07668928,108880.0,108870.0,0.18370533]
[1756759782258,1.07668928,108880.0,108870.0,0.45378533]
[1756759782477,1.0766242,108880.0,108870.0,0.45378533]
[1756759782683,0.89293574,108880.0,108870.0,0.45378533]
[1756759782955,1.0766242,108880.0,108870.0,0.45378533]
[1756759783342,1.07709789,108880.0,108870.0,0.45378533]
[1756759783776,0.52416215,108880.0,108870.0,0.45378533]
[1756759783982,1.07709789,108880.0,108870.0,0.45378533]
[1756759784609,1.07709789,108880.0,108870.0,0.45578533]
[1756759784817,1.07899789,108880.0,108870.0,0.003]
[1756759785089,1.07899789,108880.0,108870.0,0.26688]
[1756759785300,1.07899789,108880.0,108870.0,0.003]
[1756759785521,1.10681004,108880.0,108870.0,0.26652]
[1756759786174,1.07899789,108880.0,108870.0,0.26652]
[1756759786633,0.52416215,108880.0,108870.0,0.26652]
[1756759786864,1.07709789,108880.0,108870.0,0.26652]
[1756759787075,1.07709789,108880.0,108870.0,0.45538533]
[1756759788654,1.07899789,108880.0,108870.0,0.003]
[1756759788878,1.07899789,108880.0,108870.0,0.2654]
[1756759789849,1.08017789,108880.0,108870.0,0.26412]
[1756759790034,0.52606215,108880.0,108870.0,0.26412]
[1756759790242,0.89340943,108880.0,108870.0,0.45298533]
[1756759790451,0.89340943,108880.0,108870.0,0.61554132]
[1756759790452,0.00047369,108880.0,108870.0,0.61554132]
[1756759790886,0.00047369,108880.0,108870.0,0.63648014]
[1756759794438,0.00047369,108880.0,108870.0,0.37436014]
[1756759794644,0.00047369,108880.0,108870.0,0.63372014]
[1756759795042,0.00047369,108880.0,108870.0,0.63172014]
[1756759795265,0.00047369,108880.0,108870.0,0.63072014]
[1756759795468,0.00047369,108880.0,108870.0,0.63472014]
[1756759795873,0.00047369,108880.0,108870.0,0.63972014]
[1756759797297,0.00047369,108880.0,108870.0,0.38136014]
[1756759797503,0.00047369,108880.0,108870.0,0.63700014]
[1756759798109,0.00047369,108880.0,108870.0,0.38136014]
[1756759798322,0.00047369,108880.0,108870.0,0.63700014]
[1756759799319,0.00047369,108880.0,108870.0,0.63640014]
[1756759800419,0.55340943,108880.0,108870.0,0.38136014]
[1756759800639,0.00047369,108880.0,108870.0,0.63496014]
[1756759801143,0.00047369,108880.0,108870.0,0.63468014]
[1756759801627,0.55293574,108930.0,108920.0,0.183621]
[1756759801847,0.74695,108930.0,108920.0,0.25332]
[1756759802077,0.8886905,108930.0,108920.0,0.436941]
[1756759802294,0.70508636,108930.0,108920.0,0.436941]
[1756759802521,0.35041012,108930.0,108920.0,0.436941]
[1756759802738,0.70508636,108930.0,108920.0,0.436941]
[1756759802980,0.8886905,108930.0,108920.0,0.43698871]
[1756759803193,0.70808636,108930.0,108920.0,0.43698871]
[1756759803398,0.8916905,108930.0,108920.0,0.25336771]
[1756759803855,0.8936905,108930.0,108920.0,0.25336771]
[1756759804080,0.8936905,108930.0,108920.0,0.5340647]
[1756759804081,0.005,108930.0,108920.0,0.5340647]
[1756759804522,0.18860414,108930.0,108920.0,0.5340647]
[1756759804726,0.003,108930.0,108920.0,0.5340647]
[1756759804938,0.54228038,108930.0,108920.0,0.5340647]
[1756759805148,0.35567624,108930.0,108920.0,0.55500352]
[1756759805363,0.35467624,108930.0,108920.0,0.55500352]
[1756759805603,0.18368444,108940.0,108920.0,0.55500352]
[1756759805831,0.35467624,108930.0,108920.0,0.46308753]
[1756759806253,0.53828038,108930.0,108920.0,0.20976753]
[1756759806474,0.34,108940.0,108930.0,0.18360414]
[1756759806694,0.35467624,108950.0,108940.0,0.18358729]
[1756759806960,0.34,108960.0,108950.0,0.18356447]
[1756759807196,0.54863039,108960.0,108950.0,0.18356447]
[1756759807412,0.18357044,108950.0,108940.0,0.34522599]
[1756759807640,0.53824668,108950.0,108940.0,0.53089328]
[1756759807856,0.18355359,108960.0,108950.0,0.18357044]
[1756759808072,0.53822983,108960.0,108950.0,0.27548643]
[1756759808284,0.53822983,108960.0,108950.0,0.28063643]
[1756759808520,0.54012983,108960.0,108950.0,0.09191599]
[1756759808730,0.54012983,108960.0,108950.0,0.52488643]
[1756759808944,0.53822983,108960.0,108950.0,0.52488643]
[1756759809379,0.53922983,108960.0,108950.0,0.53003643]
[1756759809595,0.53922983,108960.0,108950.0,0.52795643]
[1756759809807,0.53922983,108960.0,108950.0,0.52488643]
[1756759810658,0.53922983,108960.0,108950.0,0.34011599]
[1756759810869,0.53922983,108960.0,108950.0,0.52368643]
[1756759811094,0.001,108960.0,108950.0,0.52883643]
[1756759811311,0.35567624,108960.0,108950.0,0.52883643]
[1756759811526,0.53922983,108960.0,108950.0,0.52883643]
[1756759811746,0.54022983,108960.0,108950.0,0.52883643]
[1756759812192,0.54212983,108960.0,108950.0,0.33911599]
[1756759812430,0.57303349,108960.0,108950.0,0.33911599]
[1756759812642,0.9380674,108960.0,108950.0,0.2472]
[1756759812852,1.2780674,108960.0,108950.0,0.2472]
[1756759813501,0.39857581,108960.0,108950.0,0.34426599]
[1756759813716,0.35667624,108960.0,108950.0,0.52476643]
[1756759813924,0.35667624,108960.0,108950.0,0.52783643]
[1756759814140,0.1773297,108960.0,108950.0,0.52783643]
[1756759814351,0.52353675,108970.0,108960.0,0.18355359]
[1756759814606,0.88011299,108970.0,108960.0,0.18355359]
[1756759814815,0.69657624,108970.0,108960.0,0.18355359]
[1756759815036,0.88011299,108970.0,108960.0,0.18355359]
[1756759815462,0.88011299,108970.0,108950.0,0.52675643]
[1756759815685,0.52543675,108970.0,108960.0,0.18369665]
[1756759815937,0.52353675,108970.0,108960.0,0.18369665]
[1756759816151,0.18372481,108980.0,108970.0,0.18353675]
[1756759816371,0.53221102,108980.0,108970.0,0.42865675]
[1756759816786,0.88688726,108980.0,108970.0,0.24512]
[1756759816995,0.53221102,108980.0,108970.0,0.42865675]
[1756759817219,0.88878726,108980.0,108970.0,0.24492]
[1756759817426,0.54688726,108980.0,108970.0,0.42845675]
[1756759817646,0.54688236,108980.0,108970.0,0.43152675]
[1756759818069,0.19220612,108980.0,108970.0,0.43360675]
[1756759818280,0.0002,108980.0,108970.0,0.52552274]
[1756759818514,0.18371991,108980.0,108970.0,0.52552274]
[1756759818738,0.36336383,108980.0,108970.0,0.52552274]
[1756759818968,0.54688374,108980.0,108970.0,0.27545274]
[1756759819177,0.54688374,108980.0,108970.0,0.52456274]
[1756759819598,0.54688374,108980.0,108970.0,0.28060274]
[1756759819824,0.54878374,108980.0,108970.0,0.09191599]
[1756759820038,0.54878374,108980.0,108970.0,0.33531599]
[1756759820266,0.54878374,108980.0,108970.0,0.51885274]
[1756759820478,0.54688374,108980.0,108970.0,0.33475599]
[1756759820705,0.54878374,108980.0,108970.0,0.09191599]
[1756759820930,0.54878374,108980.0,108960.0,0.00014306]
[1756759821215,0.92497289,108970.0,108960.0,0.24278306]
[1756759821436,0.54860058,108970.0,108960.0,0.24278306]
[1756759821655,0.54011299,108970.0,108960.0,0.24278306]
[1756759822542,0.56578514,108970.0,108960.0,0.24278306]
[1756759822771,0.56578514,108970.0,108960.0,0.24378306]
[1756759822965,0.56578514,108970.0,108960.0,0.24478306]
[1756759823172,0.5742849,108970.0,108960.0,0.24478306]
[1756759824432,0.5742849,108970.0,108960.0,0.00214306]
[1756759824687,0.54979275,108970.0,108960.0,0.24318306]
[1756759825133,0.92069641,108970.0,108960.0,0.24318306]
[1756759825527,1.27537265,108970.0,108960.0,0.00214306]
[1756759825743,0.94636856,108970.0,108960.0,0.00214306]
[1756759826185,1.54790545,108970.0,108960.0,0.00214306]
[1756759826665,1.56750832,108970.0,108960.0,0.00214306]
[1756759826881,1.65942431,108970.0,108960.0,0.00214306]
[1756759827096,0.95007183,108970.0,108960.0,0.00214306]
[1756759827331,1.65942431,108970.0,108960.0,0.00214306]
[1756759827784,0.95007183,108970.0,108960.0,0.00114306]
[1756759828019,1.65942431,108970.0,108960.0,0.00114306]
[1756759828431,1.65942431,108970.0,108960.0,0.00014306]
[1756759828846,0.71059183,108970.0,108960.0,0.00014306]
[1756759829085,0.91559627,108970.0,108960.0,0.00014306]
[1756759829911,0.91369627,108970.0,108960.0,0.00529306]
[1756759830126,0.91369627,108970.0,108960.0,0.18884665]
[1756759830127,0.57373075,108970.0,108960.0,0.18884665]
[1756759830341,0.8940934,108970.0,108960.0,0.00529306]
[1756759830551,0.53941716,108970.0,108960.0,0.18884665]
[1756759830758,0.36205689,108970.0,108960.0,0.42716665]
[1756759830969,0.35567624,108970.0,108960.0,0.42716665]
[1756759831173,0.35567624,108970.0,108960.0,0.51908264]
[1756759831378,0.001,108970.0,108960.0,0.51908264]
[1756759831587,0.18372008,108980.0,108970.0,0.18353675]
[1756759831810,0.5447944,108980.0,108970.0,0.27753274]
[1756759832023,0.8847944,108980.0,108970.0,0.27960274]
[1756759832228,0.36127432,108980.0,108970.0,0.27960274]
[1756759832447,0.35487624,108980.0,108970.0,0.27960274]
[1756759832874,0.0002,108980.0,108970.0,0.27960274]
[1756759833301,0.0012,108980.0,108970.0,0.27960274]
[1756759833955,0.0012,108980.0,108970.0,0.37110156]
[1756759834591,0.0002,108980.0,108970.0,0.37110156]
[1756759835006,0.0002,108980.0,108970.0,0.37310156]
[1756759835236,0.0002,108980.0,108970.0,0.37610156]
[1756759835446,0.0002,108980.0,108970.0,0.37410156]
[1756759835672,0.0002,108980.0,108970.0,0.61386156]
[1756759835882,0.0002,108980.0,108970.0,0.37810156]
[1756759836093,0.0002,108980.0,108970.0,0.61390156]
[1756759836299,0.0002,108980.0,108970.0,1.01390156]
[1756759836567,0.0002,108980.0,108970.0,0.77810156]
[1756759836778,0.0002,108980.0,108970.0,1.05535518]
[1756759838707,0.0002,108980.0,108970.0,1.05531518]
[1756759839601,0.0002,108980.0,108970.0,0.81995518]
[1756759839851,0.0002,108980.0,108970.0,1.05439518]
[1756759840084,0.0002,108980.0,108970.0,0.77810156]
[1756759840322,0.0002,108980.0,108970.0,1.01182156]
[1756759840716,0.0002,108980.0,108970.0,1.01138156]
[1756759841165,0.0002,108980.0,108970.0,0.61138156]
[1756759841593,0.0002,108980.0,108970.0,0.61094156]
[1756759842026,0.0002,108980.0,108970.0,0.37810156]
[1756759842249,0.0002,108980.0,108970.0,0.61094156]
[1756759842455,0.0002,108980.0,108970.0,0.61074156]
[1756759842640,0.0002,108980.0,108970.0,0.37810156]
[1756759842881,0.0002,108980.0,108970.0,0.61058156]
[1756759843510,0.0002,108980.0,108970.0,0.61026156]
[1756759843898,0.0002,108980.0,108970.0,0.60990156]
[1756759844101,0.0002,108980.0,108970.0,0.37810156]
[1756759844318,0.0002,108980.0,108970.0,0.60958156]
[1756759846994,0.0002,108980.0,108970.0,0.60802156]
[1756759847423,0.0002,108980.0,108970.0,0.37810156]
[1756759847837,0.0002,108980.0,108970.0,0.60786156]
[1756759849476,0.0002,108980.0,108970.0,0.37810156]
[1756759849754,0.0002,108980.0,108970.0,0.60770156]
[1756759849965,0.0002,108980.0,108970.0,0.37810156]
[1756759850105,0.0002,108980.0,108970.0,0.60746156]
[1756759850106,0.35487624,108980.0,108970.0,0.60746156]
[1756759850282,0.0002,108980.0,108970.0,0.60746156]
[1756759852884,0.0002,108980.0,108970.0,0.9621378]
[1756759853132,0.0002,108980.0,108970.0,1.3621378]
[1756759853836,0.0002,108980.0,108970.0,1.3591378]
[1756759854060,0.0002,108980.0,108970.0,1.00746156]
[1756759854729,0.0002,108980.0,108970.0,1.00346156]
[1756759855218,0.0002,108980.0,108970.0,1.00646156]
[1756759855755,0.0002,108980.0,108970.0,1.00466156]
[1756759857299,0.0002,108980.0,108970.0,1.00374156]
[1756759857512,0.35677624,108980.0,108970.0,0.37710156]
[1756759857719,0.35677624,108980.0,108970.0,0.59859156]
[1756759858136,0.35677624,108980.0,108970.0,0.57765274]
[1756759858381,0.35677624,108980.0,108970.0,0.59859156]
[1756759858823,0.35677624,108980.0,108970.0,0.35101274]
[1756759859034,0.35677624,108980.0,108970.0,0.57765274]
[1756759859244,0.35677624,108980.0,108970.0,0.37195156]
[1756759859458,0.35677624,108980.0,108970.0,0.59859156]
[1756759859690,0.54029615,108980.0,108970.0,0.35201274]
[1756759859907,0.54147615,108980.0,108970.0,0.39511599]
[1756759860118,0.54147615,108980.0,108970.0,0.57865274]
[1756759860331,0.54147615,108980.0,108970.0,0.39511599]
[1756759860541,0.54147615,108980.0,108970.0,0.16847599]
[1756759860763,0.18561991,108980.0,108970.0,0.57865274]
[1756759861009,0.54029615,108980.0,108970.0,0.57865274]
[1756759861450,0.54147615,108980.0,108970.0,0.16847599]
[1756759861668,0.54147615,108980.0,108970.0,0.39511599]
[1756759862186,0.18561991,108980.0,108970.0,0.39511599]
[1756759862387,0.57074964,108980.0,108970.0,0.39511599]
[1756759862573,0.21438591,108980.0,108970.0,0.16847599]
[1756759862795,0.93996581,108980.0,108970.0,0.006]
[1756759862985,0.93996581,108980.0,108970.0,0.2326]
[1756759863601,0.93996581,108980.0,108970.0,0.2296]
[1756759864008,0.93996581,108980.0,108970.0,0.2306]
[1756759864420,0.58528957,108980.0,108970.0,0.004]
[1756759864623,0.93996581,108980.0,108970.0,0.004]
[1756759864855,0.55438591,108980.0,108970.0,0.001]
[1756759865093,0.91006215,108980.0,108970.0,0.001]
[1756759865497,0.18353675,108970.0,108960.0,0.22678306]
[1756759865706,0.54298075,108970.0,108960.0,0.22678306]
[1756759865915,0.54011299,108970.0,108960.0,0.22678306]
[1756759866778,0.18543675,108970.0,108960.0,0.22678306]
[1756759866981,0.54298075,108970.0,108960.0,0.22678306]
[1756759867314,0.54011299,108970.0,108960.0,0.22678306]
[1756759867567,0.38246224,108980.0,108970.0,0.18353675]
[1756759867774,0.56598215,108980.0,108970.0,0.27758274]
[1756759867978,0.56598215,108980.0,108970.0,0.09721599]
[1756759869016,0.56698215,108980.0,108970.0,0.28075274]
[1756759869227,0.56798215,108980.0,108970.0,0.28075274]
[1756759869433,0.56598215,108980.0,108970.0,0.09721599]
[1756759869606,0.56598215,108980.0,108970.0,0.09821599]
[1756759869851,0.56598215,108980.0,108970.0,0.10021599]
[1756759870067,0.21130591,108980.0,108970.0,0.10021599]
[1756759870278,0.56598215,108980.0,108970.0,0.28375274]
[1756759870690,0.027786,108980.0,108970.0,0.30469156]
[1756759870913,0.56598215,108980.0,108970.0,0.30469156]
[1756759871115,0.38246224,108980.0,108970.0,0.30469156]
[1756759871330,0.35487624,108980.0,108970.0,0.30469156]
[1756759871734,0.53839615,108980.0,108970.0,0.30469156]
[1756759872342,0.18371991,108980.0,108970.0,0.30469156]
[1756759872549,0.53839615,108980.0,108970.0,0.30469156]
[1756759872758,0.53839615,108980.0,108970.0,0.12115481]
[1756759872937,0.18561991,108980.0,108970.0,0.32139599]
[1756759873146,0.54029615,108980.0,108970.0,0.32139599]
[1756759873375,0.54029615,108980.0,108970.0,0.09491599]
[1756759873791,0.18561991,108980.0,108970.0,0.32139599]
[1756759873995,0.54316364,108980.0,108970.0,0.32139599]
[1756759874200,0.54029615,108980.0,108970.0,0.32139599]
[1756759874405,0.35487624,108980.0,108970.0,0.51023274]
[1756759874590,0.53839615,108980.0,108970.0,0.51023274]
[1756759874742,0.35487624,108980.0,108970.0,0.50923274]
[1756759874959,0.38245924,108980.0,108970.0,0.50723274]
[1756759875156,0.027783,108980.0,108970.0,0.50723274]
[1756759875357,0.0002,108980.0,108970.0,0.52817156]
[1756759875684,0.35487624,108980.0,108970.0,0.52817156]
[1756759875834,0.35487624,108980.0,108970.0,0.52917156]
[1756759876039,0.69487624,108980.0,108970.0,0.52917156]
[1756759876252,0.69487624,108980.0,108970.0,0.53117156]
[1756759878148,0.69487624,108980.0,108970.0,0.53105156]
[1756759880302,0.88029615,108980.0,108970.0,0.50481274]
[1756759880677,0.90788115,108980.0,108970.0,0.50481274]
[1756759880883,0.367785,108980.0,108970.0,0.51011274]
[1756759881251,0.72246124,108980.0,108970.0,0.51011274]
[1756759881424,0.367785,108980.0,108970.0,0.51011274]
[1756759881630,0.72246124,108980.0,108970.0,0.51011274]
[1756759882040,0.69487624,108980.0,108970.0,0.51011274]
[1756759882666,0.3402,108980.0,108970.0,0.53105156]
[1756759883082,0.69487624,108980.0,108970.0,0.53105156]
[1756759885173,0.69677624,108980.0,108970.0,0.52575156]
[1756759885380,0.88029615,108980.0,108970.0,0.50457274]
[1756759885752,0.69487624,108980.0,108970.0,0.50987274]
[1756759889477,0.69487624,108980.0,108970.0,0.53081156]
[1756759889892,0.69487624,108980.0,108970.0,0.09491599]
[1756759889893,1.05263248,108980.0,108970.0,0.09491599]
[1756759890108,1.49297605,108980.0,108970.0,0.003]
[1756759890317,1.6319801,108980.0,108970.0,0.003]
[1756759890522,1.54006411,108980.0,108970.0,0.003]
[1756759890926,0.80503948,108980.0,108970.0,0.002]
[1756759891107,1.51439196,108980.0,108970.0,0.002]
[1756759891589,1.10739615,108980.0,108970.0,0.002]
[1756759891791,0.52353675,108970.0,108960.0,0.00014306]
[1756759892007,0.87821299,108970.0,108960.0,0.00014306]
[1756759892207,0.88011299,108970.0,108960.0,0.00014306]
[1756759892530,0.87821299,108970.0,108960.0,0.09418905]
[1756759892759,0.87821299,108970.0,108960.0,0.09735905]
[1756759893183,0.87821299,108970.0,108960.0,0.09935905]
[1756759893404,0.90580099,108970.0,108960.0,0.09935905]
[1756759894167,0.90580099,108970.0,108960.0,0.10035905]
[1756759894391,0.367588,108970.0,108960.0,0.28391264]
[1756759894945,0.367588,108970.0,108960.0,0.37541146]
[1756759894946,0.027588,108970.0,108960.0,0.37541146]
[1756759895365,0.027588,108970.0,108960.0,0.60121146]
[1756759895788,0.38226424,108970.0,108960.0,0.60121146]
[1756759896612,0.38226424,108970.0,108960.0,0.37541146]
[1756759896912,0.38226424,108970.0,108960.0,0.60117146]
[1756759897047,0.027588,108970.0,108960.0,0.60117146]
[1756759897250,0.38226424,108970.0,108960.0,0.60117146]
[1756759898112,0.38226424,108970.0,108960.0,0.37541146]
[1756759898271,0.38226424,108970.0,108960.0,0.60117146]
[1756759898698,0.56580099,108970.0,108960.0,0.37541146]
[1756759899009,0.38226424,108970.0,108960.0,0.60109146]
[1756759899242,0.027588,108970.0,108960.0,0.60109146]
[1756759901303,0.21112475,108970.0,108960.0,0.60109146]
[1756759901528,0.21112475,108970.0,108960.0,0.60101146]
[1756759901956,0.21112475,108970.0,108960.0,0.37541146]
[1756759902163,0.21112475,108970.0,108960.0,0.60101146]
[1756759903419,0.18353675,108970.0,108960.0,0.60101146]
[1756759906865,0.87840053,108980.0,108960.0,0.60101146]
[1756759907070,0.87840053,108980.0,108970.0,0.09191599]
[1756759907278,0.88030053,108980.0,108970.0,0.27545274]
[1756759907470,0.55320729,108980.0,108970.0,0.28056274]
[1756759907676,0.72245924,108980.0,108970.0,0.28056274]
[1756759907909,0.90787915,108980.0,108970.0,0.28056274]
[1756759908334,0.90787915,108980.0,108970.0,0.09395599]
[1756759908747,0.55320291,108980.0,108970.0,0.27749274]
[1756759908906,0.90787915,108980.0,108970.0,0.09702599]
[1756759909684,0.90787915,108980.0,108970.0,0.09191599]
[1756759910090,0.90787915,108980.0,108970.0,0.09395599]
[1756759910900,0.90787915,108980.0,108970.0,0.31915599]
[1756759911517,0.90787915,108980.0,108970.0,0.09191599]
[1756759911762,0.90787915,108980.0,108970.0,0.31711599]
[1756759912567,0.90787915,108980.0,108970.0,0.09191599]
[1756759912772,0.90787915,108980.0,108970.0,0.31707599]
[1756759913201,0.90905915,108980.0,108970.0,0.09191599]
[1756759913411,0.52353675,108970.0,108960.0,0.07070306]
[1756759913626,0.52353675,108970.0,108960.0,0.38769905]
[1756759913834,0.88129299,108970.0,108960.0,0.38769905]
[1756759914495,0.88129299,108970.0,108960.0,0.16261905]
[1756759914712,0.88129299,108970.0,108960.0,0.38765905]
[1756759914935,0.88011299,108970.0,108960.0,0.16261905]
[1756759915160,0.88129299,108970.0,108960.0,0.38861905]
[1756759915600,0.88129299,108970.0,108960.0,0.39061905]
[1756759916375,0.88129299,108970.0,108960.0,0.38961905]
[1756759916600,0.88129299,108970.0,108960.0,0.38761905]
[1756759917280,0.90887999,108970.0,108960.0,0.38761905]
[1756759917509,0.90769999,108970.0,108960.0,0.16261905]
[1756759917734,0.90769999,108970.0,108960.0,0.38749905]
[1756759919724,0.90769999,108970.0,108960.0,0.16261905]
[1756759919725,0.90887999,108970.0,108960.0,0.16261905]
[1756759919946,0.90887999,108970.0,108960.0,0.38733905]
[1756759920175,0.90769999,108970.0,108960.0,0.38733905]
[1756759920812,0.55112375,108970.0,108960.0,0.57600264]
[1756759921033,0.027587,108970.0,108960.0,0.59694146]
[1756759921928,0.027587,108970.0,108960.0,0.37222146]
[1756759922412,0.027587,108970.0,108960.0,0.59882146]
[1756759923075,0.027587,108970.0,108960.0,0.59982146]
[1756759923814,0.54844011,108980.0,108970.0,0.18353675]
[1756759924025,0.54844011,108980.0,108970.0,0.27749274]
[1756759924232,0.54843988,108980.0,108970.0,0.28056274]
[1756759924640,0.36491997,108980.0,108970.0,0.28056274]
[1756759925551,0.027583,108980.0,108970.0,0.28056274]
[1756759925770,8e-05,108990.0,108980.0,0.18351991]
[1756759925986,0.38233524,108990.0,108980.0,0.5019159]
[1756759926249,0.38233524,108990.0,108980.0,0.5050259]
[1756759927082,0.38333524,108990.0,108980.0,0.5050259]
[1756759927376,0.56873831,108990.0,108980.0,0.5050259]
[1756759927617,0.56783831,108990.0,108980.0,0.5050259]
[1756759927828,0.56683831,108990.0,108980.0,0.5050259]
[1756759928440,0.56583831,108990.0,108980.0,0.5050259]
[1756759928949,0.56683831,108990.0,108980.0,0.5050259]
[1756759929170,0.38233524,108990.0,108980.0,0.5050259]
[1756759931529,0.38423524,108990.0,108980.0,0.5050259]
[1756759931741,0.38233524,108990.0,108980.0,0.5755859]
[1756759933744,8e-05,108990.0,108980.0,0.59652472]
[1756759934179,8e-05,108990.0,108980.0,0.99652472]
[1756759934777,8e-05,108990.0,108980.0,0.59652472]
[1756759934980,8e-05,108990.0,108980.0,0.59852472]
[1756759935190,8e-05,108990.0,108980.0,0.99852472]
[1756759935394,8e-05,108990.0,108980.0,1.33842127]
[1756759935883,8e-05,108990.0,108980.0,0.59852472]
[1756759936288,8e-05,108990.0,108980.0,0.99852472]
[1756759936483,8e-05,108990.0,108980.0,0.99952472]
[1756759938012,8e-05,108990.0,108980.0,0.77516472]
[1756759938212,8e-05,108990.0,108980.0,0.99860472]
[1756759939824,0.35406128,109010.0,109000.0,0.18348623]
[1756759940042,0.35596128,109010.0,109000.0,0.49880222]
[1756759940623,0.35596128,109010.0,109000.0,0.27540222]
[1756759940892,0.53943068,109010.0,109000.0,0.49860222]
[1756759941102,0.57298861,109010.0,109000.0,0.49860222]
[1756759941313,0.54208496,109010.0,109000.0,0.49860222]
[1756759941730,0.54308496,109010.0,109000.0,0.49860222]
[1756759941938,0.54308496,109010.0,109000.0,0.09191599]
[1756759942144,0.54308496,109010.0,109000.0,0.49860222]
[1756759942974,0.54190496,109010.0,109000.0,0.49860222]
[1756759944078,0.54190496,109010.0,109000.0,0.09191599]
[1756759944284,0.54190496,109010.0,109000.0,0.49836222]
[1756759944493,0.56948196,109010.0,109000.0,0.49836222]
[1756759944669,0.56948196,109010.0,109000.0,0.31487599]
[1756759945090,0.56948196,109010.0,109000.0,0.49836222]
[1756759946929,0.03005128,109010.0,109000.0,0.50359222]
[1756759947107,0.03005128,109010.0,109000.0,0.52453104]
[1756759947676,0.00247428,109010.0,109000.0,0.52453104]
[1756759947857,0.00147428,109010.0,109000.0,0.52453104]
[1756759948305,0.00047428,109010.0,109000.0,0.52453104]
[1756759948780,0.00047428,109010.0,109000.0,0.52425104]
[1756759949265,0.00047428,109010.0,109000.0,0.30357104]
[1756759949413,0.35643556,109010.0,109000.0,0.50611222]
[1756759949788,0.53990496,109010.0,109000.0,0.27840222]
[1756759949938,0.53990496,109010.0,109000.0,0.50084222]
[1756759950559,0.35643556,109010.0,109000.0,0.27840222]
[1756759950899,0.35643556,109010.0,109000.0,0.50084222]
[1756759951313,1.26604989,109010.0,109000.0,0.003]
[1756759951490,0.91198861,109010.0,109000.0,0.22532]
[1756759951703,0.93956661,109010.0,109000.0,0.22532]
[1756759951905,0.93956661,109010.0,109000.0,0.003]
[1756759952056,1.29362789,109010.0,109000.0,0.22328]
[1756759952260,0.93956661,109010.0,109000.0,0.001]
[1756759952471,0.18350307,108990.0,108980.0,0.07056]
[1756759952670,0.54043158,108990.0,108980.0,0.38467599]
[1756759952856,0.53946435,108990.0,108980.0,0.38467599]
[1756759953058,0.56704635,108990.0,108980.0,0.38467599]
[1756759953733,0.56704635,108990.0,108980.0,0.38567599]
[1756759954062,0.56704635,108990.0,108980.0,0.16247599]
[1756759954267,0.56704635,108990.0,108980.0,0.38455599]
[1756759955071,0.56704635,108990.0,108980.0,0.16247599]
[1756759955274,0.24388872,108990.0,108980.0,0.29264]
[1756759955424,0.24388872,108990.0,108960.0,0.00311]
[1756759955425,0.18353675,108970.0,108960.0,0.00311]
[1756759955584,0.53759803,108970.0,108960.0,0.31387599]
[1756759955789,0.53949803,108970.0,108960.0,0.31587599]
[1756759955992,0.53949803,108970.0,108960.0,0.31387599]
[1756759956191,0.54920534,108970.0,108960.0,0.09191599]
[1756759956456,0.57679234,108970.0,108960.0,0.31379599]
[1756759956713,0.57679234,108970.0,108960.0,0.3158437]
[1756759957319,0.22273106,108970.0,108960.0,0.3158437]
[1756759957523,0.22273106,108970.0,108960.0,0.3168437]
[1756759957754,0.38164828,108970.0,108960.0,0.3199437]
[1756759957928,0.027587,108970.0,108960.0,0.50349729]
[1756759958288,0.027587,108970.0,108960.0,0.52843611]
[1756759958516,0.18351991,108980.0,108960.0,0.52443611]
[1756759958717,0.56516419,108980.0,108970.0,0.09501599]
[1756759958919,0.56516419,108980.0,108970.0,0.28055274]
[1756759959496,0.56516419,108980.0,108970.0,0.50227274]
[1756759959692,0.38164428,108980.0,108970.0,0.50227274]
[1756759960175,0.56516419,108980.0,108970.0,0.50327274]
[1756759960915,0.56706419,108980.0,108970.0,0.09291599]
[1756759961122,0.56706419,108980.0,108970.0,0.31451599]
[1756759961532,0.56516419,108980.0,108970.0,0.50215274]
[1756759961968,0.38164428,108980.0,108970.0,0.50315274]
[1756759962178,0.38164428,108980.0,108970.0,0.50215274]
[1756759962824,0.38164428,108980.0,108970.0,0.50315274]
[1756759963004,0.38164428,108980.0,108970.0,0.50215274]
[1756759963202,0.56516419,108980.0,108970.0,0.50215274]
[1756759963429,0.56516419,108980.0,108970.0,0.50415274]
[1756759964377,0.38164428,108980.0,108970.0,0.50415274]
[1756759964571,0.56516419,108980.0,108970.0,0.50415274]
[1756759965321,0.56516419,108980.0,108970.0,0.50515274]
[1756759966130,0.21110291,108980.0,108970.0,0.50515274]
[1756759966503,0.56516419,108980.0,108970.0,0.50515274]
[1756759967309,0.027583,108980.0,108970.0,0.52609156]
[1756759967544,0.18348725,109000.0,108990.0,0.18350307]
[1756759967545,0.69406128,109000.0,108990.0,0.18350307]
[1756759967765,0.00946901,109010.0,109000.0,0.18348623]